fUST/lending_fUST_20251125
["ID","MTS","AMOUNT","RATE_DAILY","PERIOD"]
[394843189,1764007835490,-500.0,0.00013698,2]
[394843190,1764007835500,-575.27,0.00013698,2]
[394843191,1764007835510,-1301.32,0.00013698,2]
[394843192,1764007835519,-500.0,0.00013698,2]
[394843193,1764007835528,-516.84265914,0.00013698,2]
[394843194,1764007835538,-394.42399838,0.00013698,2]
[394843195,1764007835547,-500.0,0.00013698,2]
[394843196,1764007835557,-787.62,0.00013698,2]
[394843197,1764007835566,-500.0,0.00013698,2]
[394843198,1764007835576,-500.0,0.00013698,2]
[394843199,1764007835586,-500.0,0.00013698,2]
[394843200,1764007835596,-917.81,0.00013698,2]
[394843201,1764007835609,-500.0,0.00013698,2]
[394843202,1764007835619,-500.0,0.00013698,2]
[394843203,1764007835629,-500.0,0.00013698,2]
[394843204,1764007835640,-842.11,0.00013698,2]
[394843205,1764007835651,-500.0,0.00013698,2]
[394843206,1764007835662,-507.05,0.00013698,2]
[394843207,1764007835671,-500.0,0.00013698,2]
[394843208,1764007835683,-500.0,0.00013698,2]
[394843209,1764007835693,-500.0,0.00013698,2]
[394843210,1764007835703,-500.0,0.00013698,2]
[394843211,1764007835712,-433.35083385,0.00013698,2]
[394843212,1764007835722,-500.0,0.00013698,2]
[394843213,1764007835732,-550.93655384,0.00013698,2]
[394843214,1764007835742,-1484.52,0.00013698,2]
[394843215,1764007835752,-443.13961433,0.00013698,2]
[394843216,1764007835762,-500.0,0.00013698,2]
[394843217,1764007835771,-500.0,0.00013698,2]
[394843218,1764007835782,-500.0,0.00013698,2]
[394843219,1764007835791,-500.0,0.00013698,2]
[394843220,1764007835801,-534.47,0.00013698,2]
[394843221,1764007835810,-365.90489583,0.00013698,2]
[394843222,1764007835820,-526.95335592,0.00013698,2]
[394843223,1764007835831,-163.14581137,0.00013698,2]
[394843224,1764007835842,-500.0,0.00013698,2]
[394843225,1764007835852,-500.0,0.00013698,2]
[394843226,1764007835864,-178.23298601,0.00013698,2]
[394843227,1764007835874,-500.0,0.00013698,2]
[394843228,1764007835887,-500.0,0.00013698,2]
[394843229,1764007835897,-500.0,0.00013698,2]
[394843230,1764007835908,-500.0,0.00013698,2]
[394843231,1764007835918,-500.0,0.00013698,2]
[394843232,1764007835929,-500.0,0.00013698,2]
[394843233,1764007835938,-500.0,0.00013698,2]
[394843234,1764007835950,-500.0,0.00013698,2]
[394843235,1764007835960,-500.0,0.00013698,2]
[394843236,1764007835970,-514.04,0.00013698,2]
[394843237,1764007835980,-536.11,0.00013698,2]
[394843238,1764007835990,-308.18099459,0.00013698,2]
[394843239,1764007836000,-2826.81,0.00013698,2]
[394843240,1764007836010,-552.85596472,0.00013698,2]
[394843241,1764007836020,-748.88,0.00013698,2]
[394843242,1764007836031,-500.0,0.00013698,2]
[394843243,1764007836041,-500.0,0.00013698,2]
[394843244,1764007836051,-594.36,0.00013698,2]
[394843245,1764007836062,-500.0,0.00013698,2]
[394843246,1764007836072,-500.0,0.00013698,2]
[394843247,1764007836082,-500.0,0.00013698,2]
[394843248,1764007836092,-633.06,0.00013698,2]
[394843249,1764007836102,-654.65,0.00013698,2]
[394843250,1764007836112,-500.0,0.00013698,2]
[394843251,1764007836122,-500.0,0.00013698,2]
[394843252,1764007836135,-464.86600726,0.00013698,2]
[394843253,1764007836145,-500.0,0.00013698,2]
[394843254,1764007836155,-500.0,0.00013698,2]
[394843255,1764007836166,-668.43,0.00013698,2]
[394843256,1764007836176,-500.0,0.00013698,2]
[394843257,1764007836185,-500.0,0.00013698,2]
[394843258,1764007836195,-531.17475818,0.00013698,2]
[394843259,1764007836205,-555.23303931,0.00013698,2]
[394843260,1764007836215,-542.83613105,0.00013698,2]
[394843261,1764007836224,-500.0,0.00013698,2]
[394843262,1764007836234,-500.0,0.00013698,2]
[394843263,1764007836244,-1280.68,0.00013698,2]
[394843264,1764007836254,-631.98589857,0.00013698,2]
[394843265,1764007836263,-500.0,0.00013698,2]
[394843266,1764007836272,-500.0,0.00013698,2]
[394843267,1764007836282,-500.0,0.00013698,2]
[394843268,1764007836293,-500.0,0.00013698,2]
[394843269,1764007836302,-635.71043305,0.00013698,2]
[394843270,1764007836311,-1446.89,0.00013698,2]
[394843271,1764007836321,-500.0,0.00013698,2]
[394843272,1764007836331,-500.0,0.00013698,2]
[394843273,1764007836340,-500.0,0.00013698,2]
[394843274,1764007836349,-500.0,0.00013698,2]
[394843275,1764007836359,-1305.51,0.00013698,2]
[394843276,1764007836369,-1000.03,0.00013698,2]
[394843277,1764007836379,-500.0,0.00013698,2]
[394843278,1764007836390,-500.0,0.00013698,2]
[394843279,1764007836400,-500.0,0.00013698,2]
[394843280,1764007836410,-500.0,0.00013698,2]
[394843281,1764007836419,-500.0,0.00013698,2]
[394843282,1764007836429,-240.32180117,0.00013698,2]
[394843283,1764007836438,-475.40764716,0.00013698,2]
[394843284,1764007836448,-694.93,0.00013698,2]
[394843285,1764007836457,-500.0,0.00013698,2]
[394843286,1764007836468,-500.0,0.00013698,2]
[394843287,1764007836478,-500.0,0.00013698,2]
[394843288,1764007836488,-543.12740519,0.00013698,2]
[394843289,1764007836498,-500.0,0.00013698,2]
[394843290,1764007836509,-500.0,0.00013698,2]
[394843291,1764007836519,-500.0,0.00013698,2]
[394843292,1764007836529,-500.0,0.00013698,2]
[394843293,1764007836538,-500.0,0.00013698,2]
[394843294,1764007836548,-440.60161343,0.00013698,2]
[394843295,1764007836558,-500.0,0.00013698,2]
[394843296,1764007836567,-500.0,0.00013698,2]
[394843297,1764007836577,-500.0,0.00013698,2]
[394843298,1764007836587,-500.0,0.00013698,2]
[394843299,1764007836596,-440.48830742,0.00013698,2]
[394843300,1764007836606,-611.77,0.00013698,2]
[394843301,1764007836617,-500.0,0.00013698,2]
[394843302,1764007836627,-500.0,0.00013698,2]
[394843303,1764007836637,-198.15800379,0.00013698,2]
[394843304,1764007836648,-500.0,0.00013698,2]
[394843305,1764007836657,-2238.47,0.00013698,2]
[394843306,1764007836667,-500.0,0.00013698,2]
[394843307,1764007836677,-500.0,0.00013698,2]
[394843308,1764007836688,-500.0,0.00013698,2]
[394843309,1764007836698,-997.36,0.00013698,2]
[394843310,1764007836707,-500.0,0.00013698,2]
[394843311,1764007836717,-500.0,0.00013698,2]
[394843312,1764007836727,-500.0,0.00013698,2]
[394843313,1764007836737,-500.0,0.00013698,2]
[394843314,1764007836746,-500.0,0.00013698,2]
[394843315,1764007836755,-552.88582475,0.00013698,2]
[394843316,1764007836766,-363.4825102,0.00013698,2]
[394843317,1764007836776,-594.89223117,0.00013698,2]
[394843318,1764007836785,-1627.46,0.00013698,2]
[394843319,1764007836794,-500.0,0.00013698,2]
[394843320,1764007836804,-397.27373486,0.00013698,2]
[394843321,1764007836814,-500.0,0.00013698,2]
[394843322,1764007836823,-179.86618385,0.00013698,2]
[394843323,1764007836832,-1759.32,0.00013698,2]
[394843324,1764007836842,-500.0,0.00013698,2]
[394843325,1764007836851,-500.0,0.00013698,2]
[394843326,1764007836862,-500.0,0.00013698,2]
[394843327,1764007836872,-500.0,0.00013698,2]
[394843328,1764007836881,-500.0,0.00013698,2]
[394843329,1764007836892,-721.14,0.00013698,2]
[394843330,1764007836901,-500.0,0.00013698,2]
[394843331,1764007836911,-500.0,0.00013698,2]
[394843332,1764007836921,-500.0,0.00013698,2]
[394843333,1764007836930,-500.0,0.00013698,2]
[394843334,1764007836940,-903.96,0.00013698,2]
[394843335,1764007836949,-1501.3,0.00013698,2]
[394843336,1764007836958,-500.0,0.00013698,2]
[394843337,1764007836968,-500.0,0.00013698,2]
[394843338,1764007836978,-500.0,0.00013698,2]
[394843339,1764007836989,-239.37884865,0.00013698,2]
[394843340,1764007836998,-500.0,0.00013698,2]
[394843341,1764007837008,-500.0,0.00013698,2]
[394843342,1764007837017,-500.0,0.00013698,2]
[394843343,1764007837026,-500.0,0.00013698,2]
[394843344,1764007837036,-500.0,0.00013698,2]
[394843345,1764007837045,-500.0,0.00013698,2]
[394843346,1764007837054,-1396.45,0.00013698,2]
[394843347,1764007837063,-500.0,0.00013698,2]
[394843348,1764007837072,-500.0,0.00013698,2]
[394843349,1764007837082,-1605.64,0.00013698,2]
[394843350,1764007837091,-500.0,0.00013698,2]
[394843351,1764007837100,-608.26327974,0.00013698,2]
[394843352,1764007837110,-500.0,0.00013698,2]
[394843353,1764007837120,-500.0,0.00013698,2]
[394843354,1764007837130,-500.0,0.00013698,2]
[394843355,1764007837141,-1287.56,0.00013698,2]
[394843356,1764007837151,-651.68,0.00013698,2]
[394843357,1764007837160,-500.0,0.00013698,2]
[394843358,1764007837170,-332.5087741,0.00013698,2]
[394843359,1764007837180,-315.95897227,0.00013698,2]
[394843360,1764007837190,-500.0,0.00013698,2]
[394843361,1764007837199,-500.0,0.00013698,2]
[394843362,1764007837208,-500.0,0.00013698,2]
[394843363,1764007837218,-549.32,0.00013698,2]
[394843364,1764007837227,-451.3497026,0.00013698,2]
[394843365,1764007837368,-544.77887316,0.00013698,2]
[394843366,1764007837398,-519.29,0.00013698,2]
[394843367,1764007837408,-500.0,0.00013698,2]
[394843368,1764007837419,-417.0139781,0.00013698,2]
[394843369,1764007837429,-690.97,0.00013698,2]
[394843370,1764007837438,-13177.26,0.00013698,2]
[394843371,1764007837448,-20099.82,0.00013698,2]
[394843372,1764007837458,-20099.82,0.00013698,2]
[394843373,1764007837468,-20099.82,0.00013698,2]
[394843374,1764007837480,-296.48308539,0.00013698,2]
[394843375,1764007837493,-20099.82,0.00013698,2]
[394843376,1764007837505,-20099.82,0.00013698,2]
[394843377,1764007837517,-20099.82,0.00013698,2]
[394843378,1764007837527,-20099.82,0.00013698,2]
[394843379,1764007837538,-20099.82,0.00013698,2]
[394843380,1764007837548,-20099.82,0.00013698,2]
[394843381,1764007837560,-20099.82,0.00013698,2]
[394843382,1764007837570,-20099.82,0.00013698,2]
[394843383,1764007837582,-1073.42,0.00013698,2]
[394843384,1764007837591,-3868.96267109,0.00013698,2]
[394843385,1764007837621,-16230.85732891,0.00013698,2]
[394843386,1764007837635,-20099.82,0.00013698,2]
[394843387,1764007837648,-20099.82,0.00013698,2]
[394843388,1764007837658,-20099.82,0.00013698,2]
[394843389,1764007837668,-2135.20313671,0.00013698,2]
[394843443,1764007839184,-418.70525394,9.046e-05,2]
[394843445,1764007839198,-81.29474606,9.046e-05,2]
[394843446,1764007839209,-500.0,9.046e-05,2]
[394843447,1764007839221,-125.43435486,9.046e-05,2]
[394843450,1764007839235,-374.56564514,9.046e-05,2]
[394843451,1764007839247,-500.0,9.046e-05,2]
[394843453,1764007839259,-80.65689329,9.046e-05,2]
[394843455,1764007839273,-419.34310671,9.046e-05,2]
[394843457,1764007839283,-500.0,9.046e-05,2]
[394843459,1764007839295,-101.14193646,9.046e-05,2]
[394843461,1764007839309,-398.85806354,9.046e-05,2]
[394843462,1764007839320,-500.0,9.046e-05,2]
[394843464,1764007839329,-500.0,9.046e-05,2]
[394843466,1764007839339,-500.0,9.046e-05,2]
[394843467,1764007839350,-283.78210683,9.046e-05,2]
[394843468,1764007839362,-147.31327905,9.046e-05,2]
[394843469,1764007839376,-352.68672095,9.046e-05,2]
[394843470,1764007839389,-205.01160301,0.00010959,2]
[394843471,1764007839402,-294.98839699,0.00010959,2]
[394843472,1764007839413,-500.0,0.00010959,2]
[394843473,1764007839424,-500.0,0.00010959,2]
[394843474,1764007839434,-500.0,0.00010959,2]
[394843475,1764007839445,-125.15891944,0.00010959,2]
[394843476,1764007839458,-374.84108056,0.00010959,2]
[394843477,1764007839469,-500.0,0.00010959,2]
[394843478,1764007839481,-491.83983558,0.00010959,2]
[394843479,1764007839495,-8.16016442,0.00010959,2]
[394843480,1764007839505,-500.0,0.00010959,2]
[394843481,1764007839516,-500.0,0.00010959,2]
[394843482,1764007839526,-500.0,0.00010959,2]
[394843484,1764007839538,-500.0,0.00010959,2]
[394843486,1764007839547,-500.0,0.00010959,2]
[394843488,1764007839558,-500.0,0.00010959,2]
[394843489,1764007839568,-500.0,0.00010959,2]
[394843491,1764007839578,-500.0,0.00010959,2]
[394843492,1764007839588,-407.17772115,0.00010959,2]
[394843493,1764007839599,-500.0,0.00010959,2]
[394843494,1764007839615,-500.0,0.00010959,2]
[394843495,1764007839626,-500.0,0.00010959,2]
[394843496,1764007839637,-500.0,0.00010959,2]
[394843497,1764007839647,-353.36441271,0.00012398,2]
[394843498,1764007839657,-13899.05508922,0.000129,2]
[394843499,1764007839671,-500.0,0.00013698,2]
[394843500,1764007839680,-1255.13,0.00013698,2]
[394843501,1764007839692,-500.0,0.00013698,2]
[394843502,1764007839701,-531.60847538,0.00013698,2]
[394843505,1764007839711,-500.0,0.00013698,2]
[394843507,1764007839721,-646.73062038,0.00013698,2]
[394843509,1764007839731,-250.90988846,0.00013698,2]
[394843511,1764007839740,-500.0,0.00013698,2]
[394843512,1764007839750,-500.0,0.00013698,2]
[394843513,1764007839760,-500.0,0.00013698,2]
[394843514,1764007839770,-500.0,0.00013698,2]
[394843515,1764007839780,-593.72875375,0.00013698,2]
[394843516,1764007839790,-436.45664597,0.00013698,2]
[394843518,1764007839799,-526.87,0.00013698,2]
[394843519,1764007839809,-500.0,0.00013698,2]
[394843521,1764007839819,-500.0,0.00013698,2]
[394843523,1764007839828,-754.35,0.00013698,2]
[394843524,1764007839837,-515.64,0.00013698,2]
[394843525,1764007839846,-1424.86,0.00013698,2]
[394843526,1764007839856,-511.88419636,0.00013698,2]
[394843527,1764007839865,-500.0,0.00013698,2]
[394843528,1764007839875,-500.0,0.00013698,2]
[394843529,1764007839887,-556.22870699,0.00013698,2]
[394843530,1764007839896,-1448.72,0.00013698,2]
[394843531,1764007839906,-749.81,0.00013698,2]
[394843532,1764007839916,-500.0,0.00013698,2]
[394843534,1764007839926,-336.43586243,0.00013698,2]
[394843535,1764007839936,-500.0,0.00013698,2]
[394843536,1764007839944,-539.57667591,0.00013698,2]
[394843537,1764007839953,-1080.95,0.00013698,2]
[394843538,1764007839962,-500.0,0.00013698,2]
[394843539,1764007839971,-548.11791756,0.00013698,2]
[394843541,1764007839981,-500.0,0.00013698,2]
[394843542,1764007839991,-2189.08,0.00013698,2]
[394843543,1764007840000,-2333.66,0.00013698,2]
[394843544,1764007840010,-566.37,0.00013698,2]
[394843545,1764007840019,-500.0,0.00013698,2]
[394843546,1764007840028,-244.70723342,0.00013698,2]
[394843548,1764007840037,-500.0,0.00013698,2]
[394843549,1764007840046,-307.17618257,0.00013698,2]
[394843550,1764007840055,-500.0,0.00013698,2]
[394843551,1764007840065,-542.28196437,0.00013698,2]
[394843552,1764007840074,-620.05,0.00013698,2]
[394843553,1764007840083,-529.8,0.00013698,2]
[394843555,1764007840092,-543.12261841,0.00013698,2]
[394843556,1764007840101,-901.83,0.00013698,2]
[394843557,1764007840111,-769.47,0.00013698,2]
[394843558,1764007840120,-721.63,0.00013698,2]
[394843559,1764007840129,-779.75,0.00013698,2]
[394843560,1764007840140,-500.0,0.00013698,2]
[394843561,1764007840149,-500.0,0.00013698,2]
[394843562,1764007840158,-509.32569162,0.00013698,2]
[394843563,1764007840168,-500.0,0.00013698,2]
[394843564,1764007840177,-500.0,0.00013698,2]
[394843565,1764007840186,-500.0,0.00013698,2]
[394843566,1764007840195,-500.0,0.00013698,2]
[394843567,1764007840204,-500.0,0.00013698,2]
[394843568,1764007840214,-516.6823292,0.00013698,2]
[394843569,1764007840223,-500.0,0.00013698,2]
[394843570,1764007840233,-500.0,0.00013698,2]
[394843571,1764007840243,-151.0,0.00013698,2]
[394843572,1764007840253,-11809.16342186,0.00013698,2]
[394843573,1764007840267,-4717.75764161,0.00013698,2]
[394843574,1764007840278,-356.87099803,0.00013698,2]
[394843575,1764007840289,-27674.9679385,0.00013698,2]
[394843576,1764007840298,-151.0,0.00013698,2]
[394843577,1764007840308,-1948.68,0.00013698,2]
[394843578,1764007840317,-3.37824385,0.00013698,2]
[394843579,1764007840329,-147.62175615,0.00013698,2]
[394843580,1764007840338,-215.656666,0.00013698,2]
[394843581,1764007840348,-235.48035732,0.00013698,2]
[394843582,1764007840357,-500.0,0.00013698,2]
[394843583,1764007840367,-1743.06,0.00013698,2]
[394843584,1764007840377,-500.0,0.00013698,2]
[394843585,1764007840387,-132.65015289,0.00013698,2]
[394843586,1764007840401,-102.99973874,0.00013698,2]
[394843587,1764007840411,-502.62225745,0.00013698,2]
[394843589,1764007840421,-771.49774255,0.00013698,2]
[394843590,1764007840431,-223.28839996,0.00013698,2]
[394843591,1764007840441,-413.94400322,0.00013698,2]
[394843592,1764007840451,-510.70658807,0.00013698,2]
[394843593,1764007840460,-500.0,0.00013698,2]
[394843594,1764007840470,-274.8114742,0.00013698,2]
[394843595,1764007840957,-225.1885258,0.00013698,2]
[394843596,1764007840967,-500.0,0.00013698,2]
[394843597,1764007840975,-500.0,0.00013698,2]
[394843598,1764007840984,-500.0,0.00013698,2]
[394843599,1764007840993,-2180.07,0.00013698,2]
[394843600,1764007841002,-500.0,0.00013698,2]
[394843601,1764007841012,-3080.93,0.00013698,2]
[394843602,1764007841021,-500.0,0.00013698,2]
[394843603,1764007841030,-444.36601107,0.00013698,2]
[394843604,1764007841040,-396.81714792,0.00013698,2]
[394843605,1764007841049,-374.70377693,0.00013698,2]
[394843606,1764007841058,-93.26731721,0.00013698,2]
[394843607,1764007841069,-406.73268279,0.00013698,2]
[394843608,1764007841078,-201.53468215,0.00013698,2]
[394843609,1764007841087,-1253.2,0.00013698,2]
[394843610,1764007841097,-500.0,0.00013698,2]
[394843611,1764007841107,-500.0,0.00013698,2]
[394843612,1764007841116,-500.0,0.00013698,2]
[394843613,1764007841126,-500.0,0.00013698,2]
[394843614,1764007841138,-500.0,0.00013698,2]
[394843615,1764007841147,-548.27,0.00013698,2]
[394843616,1764007841157,-500.0,0.00013698,2]
[394843617,1764007841167,-532.18,0.00013698,2]
[394843618,1764007841176,-520.24972846,0.00013698,2]
[394843619,1764007841186,-500.0,0.00013698,2]
[394843620,1764007841195,-2996.38,0.00013698,2]
[394843621,1764007841205,-500.0,0.00013698,2]
[394843622,1764007841214,-500.0,0.00013698,2]
[394843623,1764007841224,-4.1429066,0.00013698,2]
[394843624,1764007841235,-1751.5470934,0.00013698,2]
[394843625,1764007841245,-506.31,0.00013698,2]
[394843626,1764007841254,-574.64,0.00013698,2]
[394843627,1764007841263,-559.91,0.00013698,2]
[394843628,1764007841272,-500.0,0.00013698,2]
[394843629,1764007841281,-500.0,0.00013698,2]
[394843630,1764007841291,-500.0,0.00013698,2]
[394843631,1764007841301,-500.0,0.00013698,2]
[394843632,1764007841310,-526.80705654,0.00013698,2]
[394843633,1764007841320,-500.0,0.00013698,2]
[394843634,1764007841330,-500.0,0.00013698,2]
[394843635,1764007841340,-508.89570374,0.00013698,2]
[394843636,1764007841349,-515.3,0.00013698,2]
[394843637,1764007841359,-508.56497565,0.00013698,2]
[394843638,1764007841368,-510.97217833,0.00013698,2]
[394843639,1764007841377,-500.0,0.00013698,2]
[394843640,1764007841389,-500.0,0.00013698,2]
[394843641,1764007841399,-510.75312793,0.00013698,2]
[394843642,1764007841408,-519.32,0.00013698,2]
[394843643,1764007841417,-500.0,0.00013698,2]
[394843644,1764007841427,-204.79380361,0.00013698,2]
[394843645,1764007841437,-500.0,0.00013698,2]
[394843646,1764007841446,-1108.63,0.00013698,2]
[394843647,1764007841455,-963.39,0.00013698,2]
[394843648,1764007841466,-538.60799471,0.00013698,2]
[394843649,1764007841476,-226.48009079,0.00013698,2]
[394843650,1764007841485,-500.0,0.00013698,2]
[394843651,1764007841495,-536.55914145,0.00013698,2]
[394843652,1764007841505,-500.0,0.00013698,2]
[394843653,1764007841514,-500.0,0.00013698,2]
[394843654,1764007841524,-2013.31,0.00013698,2]
[394843655,1764007841533,-500.0,0.00013698,2]
[394843656,1764007841542,-500.0,0.00013698,2]
[394843657,1764007841551,-500.0,0.00013698,2]
[394843658,1764007841561,-500.0,0.00013698,2]
[394843659,1764007841571,-4541.74,0.00013698,2]
[394843660,1764007841579,-500.0,0.00013698,2]
[394843661,1764007841590,-500.0,0.00013698,2]
[394843662,1764007841599,-500.0,0.00013698,2]
[394843663,1764007841611,-2192.44,0.00013698,2]
[394843664,1764007841622,-1321.77,0.00013698,2]
[394843665,1764007841634,-500.0,0.00013698,2]
[394843666,1764007841644,-500.0,0.00013698,2]
[394843667,1764007841656,-500.0,0.00013698,2]
[394843668,1764007841666,-1559.98,0.00013698,2]
[394843669,1764007841676,-522.74,0.00013698,2]
[394843670,1764007841687,-500.0,0.00013698,2]
[394843671,1764007841697,-500.0,0.00013698,2]
[394843672,1764007841707,-500.0,0.00013698,2]
[394843673,1764007841716,-500.0,0.00013698,2]
[394843674,1764007841725,-500.0,0.00013698,2]
[394843675,1764007841735,-500.0,0.00013698,2]
[394843676,1764007841745,-1465.41,0.00013698,2]
[394843677,1764007841755,-500.0,0.00013698,2]
[394843678,1764007841765,-545.93395583,0.00013698,2]
[394843679,1764007841774,-500.0,0.00013698,2]
[394843680,1764007841784,-500.0,0.00013698,2]
[394843681,1764007841794,-620.72,0.00013698,2]
[394843682,1764007841803,-500.0,0.00013698,2]
[394843683,1764007841813,-500.0,0.00013698,2]
[394843684,1764007841823,-500.0,0.00013698,2]
[394843685,1764007841833,-3668.62,0.00013698,2]
[394843686,1764007841842,-500.0,0.00013698,2]
[394843687,1764007841851,-500.0,0.00013698,2]
[394843688,1764007841861,-512.23543849,0.00013698,2]
[394843689,1764007841870,-653.78,0.00013698,2]
[394843690,1764007841879,-500.0,0.00013698,2]
[394843691,1764007841890,-516.92155564,0.00013698,2]
[394843692,1764007841900,-3404.01788389,0.00013698,2]
[394843693,1764007842134,-1286.79211611,0.00013698,2]
[394843694,1764007842144,-500.0,0.00013698,2]
[394843695,1764007842154,-500.0,0.00013698,2]
[394843696,1764007842163,-500.0,0.00013698,2]
[394843697,1764007842172,-500.0,0.00013698,2]
[394843698,1764007842181,-5692.16,0.00013698,2]
[394843699,1764007842191,-500.0,0.00013698,2]
[394843700,1764007842200,-500.0,0.00013698,2]
[394843701,1764007842210,-1387.47,0.00013698,2]
[394843702,1764007842220,-519.86810392,0.00013698,2]
[394843703,1764007842230,-500.0,0.00013698,2]
[394843704,1764007842239,-500.0,0.00013698,2]
[394843705,1764007842248,-500.0,0.00013698,2]
[394843706,1764007842262,-2884.65,0.00013698,2]
[394843707,1764007842278,-540.62765598,0.00013698,2]
[394843708,1764007842287,-500.0,0.00013698,2]
[394843709,1764007842296,-2938.88,0.00013698,2]
[394843710,1764007842306,-500.0,0.00013698,2]
[394843711,1764007842315,-302.08348365,0.00013698,2]
[394843712,1764007842325,-1429.87,0.00013698,2]
[394843713,1764007842334,-500.0,0.00013698,2]
[394843714,1764007842344,-3749.83,0.00013698,2]
[394843715,1764007842353,-500.0,0.00013698,2]
[394843716,1764007842363,-529.71218191,0.00013698,2]
[394843717,1764007842372,-500.0,0.00013698,2]
[394843718,1764007842382,-500.0,0.00013698,2]
[394843719,1764007842393,-523.34058872,0.00013698,2]
[394843720,1764007842403,-1248.84,0.00013698,2]
[394843721,1764007842413,-500.0,0.00013698,2]
[394843722,1764007842422,-500.0,0.00013698,2]
[394843723,1764007842432,-500.0,0.00013698,2]
[394843724,1764007842442,-500.0,0.00013698,2]
[394843725,1764007842452,-500.0,0.00013698,2]
[394843726,1764007842461,-500.0,0.00013698,2]
[394843728,1764007842471,-520.54282718,0.00013698,2]
[394843730,1764007842480,-3260.62,0.00013698,2]
[394843732,1764007842489,-529.86280411,0.00013698,2]
[394843733,1764007842498,-1171.78,0.00013698,2]
[394843735,1764007842507,-500.0,0.00013698,2]
[394843736,1764007842517,-500.0,0.00013698,2]
[394843737,1764007842528,-538.89,0.00013698,2]
[394843738,1764007842537,-500.0,0.00013698,2]
[394843739,1764007842546,-500.0,0.00013698,2]
[394843740,1764007842556,-500.0,0.00013698,2]
[394843741,1764007842565,-502.02,0.00013698,2]
[394843742,1764007842576,-1484.41,0.00013698,2]
[394843743,1764007842585,-511.34937359,0.00013698,2]
[394843744,1764007842594,-500.0,0.00013698,2]
[394843745,1764007842605,-500.0,0.00013698,2]
[394843746,1764007842617,-500.0,0.00013698,2]
[394843747,1764007842628,-550.86,0.00013698,2]
[394843748,1764007842639,-500.0,0.00013698,2]
[394843749,1764007842650,-500.0,0.00013698,2]
[394843750,1764007842660,-500.0,0.00013698,2]
[394843751,1764007842673,-500.0,0.00013698,2]
[394843752,1764007842682,-300.913749,0.00013698,2]
[394843753,1764007842693,-500.0,0.00013698,2]
[394843754,1764007842703,-576.02,0.00013698,2]
[394843755,1764007842712,-3021.36,0.00013698,2]
[394843756,1764007842722,-470.294384,0.00013698,2]
[394843757,1764007842731,-470.294384,0.00013698,2]
[394843758,1764007842741,-528.15764836,0.00013698,2]
[394843759,1764007842750,-196.541771,0.00013698,2]
[394843760,1764007842760,-500.0,0.00013698,2]
[394843761,1764007842769,-616.46,0.00013698,2]
[394843762,1764007842778,-470.294384,0.00013698,2]
[394843763,1764007842788,-500.0,0.00013698,2]
[394843764,1764007842798,-470.294384,0.00013698,2]
[394843765,1764007842808,-470.294384,0.00013698,2]
[394843766,1764007842817,-755.41,0.00013698,2]
[394843767,1764007842827,-470.294384,0.00013698,2]
[394843768,1764007842837,-470.294384,0.00013698,2]
[394843769,1764007842846,-470.294384,0.00013698,2]
[394843770,1764007842856,-1077.2,0.00013698,2]
[394843771,1764007842865,-536.78027825,0.00013698,2]
[394843772,1764007842875,-470.294384,0.00013698,2]